[Event "*** Titled Tuesday Blitz"]
[Site "Chess.com"]
[Date "2020.04.07"]
[Round "5"]
[White "Borsuk_Konstantin"]
[Black "rugbyclub"]
[Result "1-0"]
[WhiteElo "2450"]
[BlackElo "2109"]
[TimeControl "180+1"]
[EndTime "13:56:34 PDT"]
[Termination "Borsuk_Konstantin won by checkmate"]

1. d4 {[%clk 0:03:00.9]} 1... d5 {[%clk 0:02:56.5]} 2. c4 {[%clk 0:03:01.3]}
2... dxc4 {[%clk 0:02:50.5]} 3. Nf3 {[%clk 0:03:00.4]} 3... Nf6 {[%clk
0:02:47.7]} 4. e3 {[%clk 0:03:00.8]} 4... Bg4 {[%clk 0:02:46.7]} 5. Bxc4 {[%clk
0:03:00.3]} 5... e6 {[%clk 0:02:46.5]} 6. h3 {[%clk 0:02:59.8]} 6... Bh5 {[%clk
0:02:41.6]} 7. Nc3 {[%clk 0:02:59.8]} 7... Nc6 {[%clk 0:02:40.1]} 8. g4 {[%clk
0:02:53]} 8... Bg6 {[%clk 0:02:37.5]} 9. Nh4 {[%clk 0:02:53.4]} 9... Be7 {[%clk
0:02:34.8]} 10. Nxg6 {[%clk 0:02:48.1]} 10... hxg6 {[%clk 0:02:34.3]} 11. Qf3
{[%clk 0:02:48.3]} 11... a6 {[%clk 0:02:22]} 12. Bd2 {[%clk 0:02:47.5]} 12...
Qd7 {[%clk 0:02:14]} 13. a3 {[%clk 0:02:43]} 13... O-O {[%clk 0:02:04.6]} 14. h4
{[%clk 0:02:32.7]} 14... b5 {[%clk 0:01:57.1]} 15. Be2 {[%clk 0:02:19.7]} 15...
e5 {[%clk 0:01:50.6]} 16. d5 {[%clk 0:02:09]} 16... Na5 {[%clk 0:01:48.4]} 17.
h5 {[%clk 0:01:57.4]} 17... gxh5 {[%clk 0:01:36.6]} 18. g5 {[%clk 0:01:44.6]}
18... Nh7 {[%clk 0:01:34]} 19. Qxh5 {[%clk 0:01:09.4]} 19... Qf5 {[%clk
0:01:32.4]} 20. Bg4 {[%clk 0:00:58.8]} 20... Qg6 {[%clk 0:01:31.4]} 21. f4
{[%clk 0:00:32.9]} 21... Qxh5 {[%clk 0:01:28.9]} 22. Rxh5 {[%clk 0:00:32.2]}
22... exf4 {[%clk 0:01:26.3]} 23. exf4 {[%clk 0:00:30.3]} 23... Nb3 {[%clk
0:01:12.4]} 24. Rd1 {[%clk 0:00:29.1]} 24... Rfe8 {[%clk 0:01:11]} 25. Bd7
{[%clk 0:00:23.4]} 25... g6 {[%clk 0:01:01.9]} 26. Rh1 {[%clk 0:00:20.1]} 26...
Red8 {[%clk 0:00:51.1]} 27. Bc6 {[%clk 0:00:20.5]} 27... Rab8 {[%clk 0:00:47.8]}
28. Ne4 {[%clk 0:00:20.4]} 28... Nd4 {[%clk 0:00:43.5]} 29. Bc3 {[%clk
0:00:20.1]} 29... Nxc6 {[%clk 0:00:41.2]} 30. Rd3 {[%clk 0:00:14.2]} 30... b4
{[%clk 0:00:12.2]} 31. Rxh7 {[%clk 0:00:13.5]} 31... bxc3 {[%clk 0:00:08]} 32.
Rdh3 {[%clk 0:00:14]} 32... f5 {[%clk 0:00:04.5]} 33. Rh8+ {[%clk 0:00:14]}
33... Kf7 {[%clk 0:00:03.2]} 34. R3h7# {[%clk 0:00:14.5]} 1-0

[Event "*** Titled Tuesday Blitz"]
[Site "Chess.com"]
[Date "2020.04.07"]
[Round "5"]
[White "Caracternin123"]
[Black "donotreadit"]
[Result "0-1"]
[WhiteElo "2561"]
[BlackElo "2756"]
[TimeControl "180+1"]
[EndTime "13:56:35 PDT"]
[Termination "donotreadit won by checkmate"]

1. d4 {[%clk 0:03:00.9]} 1... d5 {[%clk 0:02:58]} 2. Nf3 {[%clk 0:03:00.5]} 2...
e6 {[%clk 0:02:58.1]} 3. Bf4 {[%clk 0:02:58.7]} 3... c5 {[%clk 0:02:57.2]} 4. e3
{[%clk 0:02:58]} 4... Nc6 {[%clk 0:02:57.5]} 5. c3 {[%clk 0:02:58]} 5... Nf6
{[%clk 0:02:57.7]} 6. Nbd2 {[%clk 0:02:57.2]} 6... Bd6 {[%clk 0:02:56.6]} 7. Bg3
{[%clk 0:02:57.1]} 7... Qc7 {[%clk 0:02:56.2]} 8. dxc5 {[%clk 0:02:49]} 8...
Bxg3 {[%clk 0:02:55.6]} 9. hxg3 {[%clk 0:02:49.9]} 9... a5 {[%clk 0:02:55.9]}
10. Nd4 {[%clk 0:02:46.1]} 10... e5 {[%clk 0:02:49.5]} 11. Nb5 {[%clk
0:02:43.2]} 11... Qe7 {[%clk 0:02:49.3]} 12. Nd6+ {[%clk 0:02:40.4]} 12... Kf8
{[%clk 0:02:49.8]} 13. a3 {[%clk 0:02:34]} 13... Be6 {[%clk 0:02:39.2]} 14. b4
{[%clk 0:02:33.2]} 14... b6 {[%clk 0:02:39.6]} 15. Qa4 {[%clk 0:02:17.8]} 15...
Nd8 {[%clk 0:02:32.9]} 16. Nf3 {[%clk 0:01:55.3]} 16... bxc5 {[%clk 0:02:28.9]}
17. bxc5 {[%clk 0:01:56.2]} 17... Nd7 {[%clk 0:02:29.2]} 18. Qb5 {[%clk
0:01:56.5]} 18... g6 {[%clk 0:02:09.9]} 19. c4 {[%clk 0:01:40.4]} 19... d4
{[%clk 0:01:43.7]} 20. exd4 {[%clk 0:01:32]} 20... exd4 {[%clk 0:01:44.6]} 21.
O-O-O {[%clk 0:01:31.6]} 21... Bg4 {[%clk 0:01:19.6]} 22. Rxd4 {[%clk
0:01:00.3]} 22... Bxf3 {[%clk 0:01:19]} 23. gxf3 {[%clk 0:01:01.2]} 23... Ne6
{[%clk 0:01:19.6]} 24. Rd5 {[%clk 0:00:52.8]} 24... Ndxc5 {[%clk 0:01:04.5]} 25.
Bh3 {[%clk 0:00:52.9]} 25... Kg7 {[%clk 0:00:58.1]} 26. Qb2+ {[%clk 0:00:51.4]}
26... f6 {[%clk 0:00:48.2]} 27. Re1 {[%clk 0:00:46.2]} 27... Rhb8 {[%clk
0:00:43.9]} 28. Nb5 {[%clk 0:00:46.3]} 28... Qf7 {[%clk 0:00:29.5]} 29. Rd6
{[%clk 0:00:35.2]} 29... Ng5 {[%clk 0:00:16]} 30. Bg2 {[%clk 0:00:24.1]} 30...
Qxc4+ {[%clk 0:00:13.4]} 31. Qc3 {[%clk 0:00:13.9]} 31... Qxb5 {[%clk
0:00:08.2]} 32. Qxf6+ {[%clk 0:00:13.7]} 32... Kg8 {[%clk 0:00:08.7]} 33. Re7
{[%clk 0:00:04.4]} 33... Qb1+ {[%clk 0:00:08.3]} 34. Kd2 {[%clk 0:00:04.9]}
34... Rb2+ {[%clk 0:00:08]} 35. Ke3 {[%clk 0:00:04.9]} 35... Qc1+ {[%clk
0:00:08.3]} 36. Kd4 {[%clk 0:00:02.5]} 36... Nb3+ {[%clk 0:00:08.2]} 37. Kd5
{[%clk 0:00:02]} 37... Qc5# {[%clk 0:00:08.5]} 0-1

[Event "*** Titled Tuesday Blitz"]
[Site "Chess.com"]
[Date "2020.04.07"]
[Round "5"]
[White "plumalka"]
[Black "Shukh_Nikolay"]
[Result "1-0"]
[WhiteElo "2400"]
[BlackElo "2540"]
[TimeControl "180+1"]
[EndTime "13:56:35 PDT"]
[Termination "plumalka won by checkmate"]

1. e4 {[%clk 0:03:00.9]} 1... e5 {[%clk 0:02:59.4]} 2. Nf3 {[%clk 0:03:00.9]}
2... Nc6 {[%clk 0:02:59.9]} 3. Nc3 {[%clk 0:03:01.1]} 3... Nf6 {[%clk
0:02:59.5]} 4. a3 {[%clk 0:03:01.1]} 4... Bd6 {[%clk 0:02:44.9]} 5. d4 {[%clk
0:02:52.9]} 5... O-O {[%clk 0:02:33.7]} 6. d5 {[%clk 0:02:50.6]} 6... Ne7 {[%clk
0:02:29.5]} 7. Bd3 {[%clk 0:02:47.6]} 7... c6 {[%clk 0:02:26.6]} 8. O-O {[%clk
0:02:38.5]} 8... Ng6 {[%clk 0:02:16.7]} 9. dxc6 {[%clk 0:02:19.5]} 9... dxc6
{[%clk 0:02:16]} 10. Ne2 {[%clk 0:02:19.3]} 10... a5 {[%clk 0:02:09.8]} 11. Ng3
{[%clk 0:02:18.4]} 11... Bc5 {[%clk 0:02:07.2]} 12. Qe2 {[%clk 0:02:15.7]} 12...
Qb6 {[%clk 0:01:47.5]} 13. Bd2 {[%clk 0:02:03.2]} 13... Nf4 {[%clk 0:01:31.9]}
14. Bxf4 {[%clk 0:01:55.4]} 14... exf4 {[%clk 0:01:32.8]} 15. Nf5 {[%clk
0:01:51]} 15... Bxf5 {[%clk 0:01:31.7]} 16. exf5 {[%clk 0:01:51.9]} 16... Rfe8
{[%clk 0:01:20.9]} 17. Qd2 {[%clk 0:01:49.5]} 17... Rad8 {[%clk 0:01:18.8]} 18.
Qxf4 {[%clk 0:01:47.2]} 18... Qxb2 {[%clk 0:00:39.1]} 19. Qc4 {[%clk 0:01:36.3]}
19... Qb6 {[%clk 0:00:22.5]} 20. Ng5 {[%clk 0:01:32.3]} 20... Rd7 {[%clk
0:00:21.2]} 21. Qa2 {[%clk 0:01:13.2]} 21... h6 {[%clk 0:00:20.4]} 22. Rab1
{[%clk 0:01:02.8]} 22... Qa7 {[%clk 0:00:19.5]} 23. Nh3 {[%clk 0:00:52]} 23...
Nd5 {[%clk 0:00:15.9]} 24. Qc4 {[%clk 0:00:49.9]} 24... b5 {[%clk 0:00:14.3]}
25. Qg4 {[%clk 0:00:49.7]} 25... Nf6 {[%clk 0:00:11.5]} 26. Qg3 {[%clk
0:00:49.4]} 26... Rde7 {[%clk 0:00:10.6]} 27. Nf4 {[%clk 0:00:47.2]} 27... Bd6
{[%clk 0:00:10.2]} 28. Qf3 {[%clk 0:00:45]} 28... Qc7 {[%clk 0:00:09.6]} 29. Nh5
{[%clk 0:00:40.3]} 29... Bxh2+ {[%clk 0:00:09.6]} 30. Kh1 {[%clk 0:00:40.5]}
30... Nxh5 {[%clk 0:00:09.9]} 31. Qxh5 {[%clk 0:00:41.3]} 31... Be5 {[%clk
0:00:10.5]} 32. Rbe1 {[%clk 0:00:40.5]} 32... Bf6 {[%clk 0:00:10.7]} 33. Rd1
{[%clk 0:00:37.5]} 33... a4 {[%clk 0:00:09.4]} 34. f3 {[%clk 0:00:37.2]} 34...
Qe5 {[%clk 0:00:09.1]} 35. Be4 {[%clk 0:00:37]} 35... Qc5 {[%clk 0:00:08.8]} 36.
Rd2 {[%clk 0:00:34.7]} 36... Qxa3 {[%clk 0:00:08.7]} 37. Bxc6 {[%clk 0:00:32]}
37... Rc8 {[%clk 0:00:08.7]} 38. Bd5 {[%clk 0:00:32.1]} 38... Qc3 {[%clk
0:00:08.1]} 39. Rfd1 {[%clk 0:00:31.8]} 39... a3 {[%clk 0:00:07.9]} 40. Bb3
{[%clk 0:00:30.2]} 40... b4 {[%clk 0:00:07.1]} 41. Rd8+ {[%clk 0:00:29.7]} 41...
Rxd8 {[%clk 0:00:07.3]} 42. Rxd8+ {[%clk 0:00:30.3]} 42... Kh7 {[%clk 0:00:08]}
43. Qg6+ {[%clk 0:00:30.2]} 43... fxg6 {[%clk 0:00:07.1]} 44. Bg8+ {[%clk
0:00:30]} 44... Kh8 {[%clk 0:00:07]} 45. Bf7+ {[%clk 0:00:30.2]} 45... Re8
{[%clk 0:00:06.6]} 46. Rxe8+ {[%clk 0:00:30.3]} 46... Kh7 {[%clk 0:00:06.7]} 47.
fxg6# {[%clk 0:00:30.5]} 1-0

[Event "*** Titled Tuesday Blitz"]
[Site "Chess.com"]
[Date "2020.04.07"]
[Round "5"]
[White "Korchmar_Vasiliy"]
[Black "SPEEDSKATER"]
[Result "0-1"]
[WhiteElo "2608"]
[BlackElo "2792"]
[TimeControl "180+1"]
[EndTime "13:56:36 PDT"]
[Termination "SPEEDSKATER won on time"]

1. d4 {[%clk 0:03:00.9]} 1... d5 {[%clk 0:02:57.6]} 2. c4 {[%clk 0:03:01]} 2...
c6 {[%clk 0:02:57.5]} 3. Nf3 {[%clk 0:03:01.3]} 3... Nf6 {[%clk 0:02:57.2]} 4.
g3 {[%clk 0:03:01.9]} 4... Bf5 {[%clk 0:02:53.3]} 5. Nc3 {[%clk 0:03:01.4]} 5...
e6 {[%clk 0:02:53]} 6. Nh4 {[%clk 0:03:01.7]} 6... Bg6 {[%clk 0:02:47.9]} 7. Qb3
{[%clk 0:03:01.2]} 7... Qb6 {[%clk 0:02:45.8]} 8. Nxg6 {[%clk 0:03:01.3]} 8...
hxg6 {[%clk 0:02:45.6]} 9. c5 {[%clk 0:03:01.9]} 9... Qc7 {[%clk 0:02:45.4]} 10.
Bf4 {[%clk 0:02:58.2]} 10... Qc8 {[%clk 0:02:45.2]} 11. Bg2 {[%clk 0:02:58.8]}
11... Nbd7 {[%clk 0:02:45]} 12. O-O {[%clk 0:02:57.2]} 12... e5 {[%clk
0:02:37.1]} 13. e4 {[%clk 0:02:34.5]} 13... Nxe4 {[%clk 0:02:12.3]} 14. Nxe4
{[%clk 0:02:20.1]} 14... dxe4 {[%clk 0:02:10.7]} 15. dxe5 {[%clk 0:02:06.8]}
15... Nxc5 {[%clk 0:02:10.1]} 16. Qc2 {[%clk 0:01:47.9]} 16... Qf5 {[%clk
0:01:39.2]} 17. Rfe1 {[%clk 0:01:32.6]} 17... Rd8 {[%clk 0:01:05.4]} 18. Rad1
{[%clk 0:01:06.8]} 18... Rxd1 {[%clk 0:01:00.8]} 19. Qxd1 {[%clk 0:01:07.7]}
19... Be7 {[%clk 0:00:55.2]} 20. b4 {[%clk 0:01:07.5]} 20... Ne6 {[%clk
0:00:54.7]} 21. Bxe4 {[%clk 0:01:07.6]} 21... Qh3 {[%clk 0:00:54.4]} 22. Be3
{[%clk 0:00:57.5]} 22... Qxh2+ {[%clk 0:00:53.5]} 23. Kf1 {[%clk 0:00:57.7]}
23... Qh3+ {[%clk 0:00:53.5]} 24. Bg2 {[%clk 0:00:55.5]} 24... Qf5 {[%clk
0:00:50.7]} 25. a3 {[%clk 0:00:48.8]} 25... O-O {[%clk 0:00:45.2]} 26. Qd7
{[%clk 0:00:42.8]} 26... Bg5 {[%clk 0:00:38.1]} 27. f4 {[%clk 0:00:28.3]} 27...
Rd8 {[%clk 0:00:35.5]} 28. Qxb7 {[%clk 0:00:27.1]} 28... Nxf4 {[%clk 0:00:20.8]}
29. gxf4 {[%clk 0:00:27.6]} 29... Bh4 {[%clk 0:00:20.8]} 30. Bf2 {[%clk
0:00:08]} 30... Qxf4 {[%clk 0:00:20.6]} 31. Qxa7 {[%clk 0:00:07.2]} 31... Rd2
{[%clk 0:00:20.1]} 32. Re2 {[%clk 0:00:03.3]} 32... Rd1+ {[%clk 0:00:20.4]} 33.
Re1 {[%clk 0:00:03.2]} 33... Qc4+ {[%clk 0:00:20.1]} 34. Kg1 {[%clk 0:00:03.3]}
34... Rxe1+ {[%clk 0:00:20.3]} 35. Bxe1 {[%clk 0:00:03.5]} 35... Bxe1 {[%clk
0:00:21.2]} 36. Qa8+ {[%clk 0:00:02.7]} 36... Kh7 {[%clk 0:00:20.7]} 37. Qxc6
{[%clk 0:00:03.6]} 37... Qd4+ {[%clk 0:00:20.7]} 38. Kh2 {[%clk 0:00:02]} 38...
Qxe5+ {[%clk 0:00:20.3]} 39. Kg1 {[%clk 0:00:01.6]} 39... Qe3+ {[%clk
0:00:20.2]} 40. Kh2 {[%clk 0:00:01.9]} 40... f5 {[%clk 0:00:20.3]} 41. Qf3
{[%clk 0:00:01.3]} 41... Qe5+ {[%clk 0:00:19.5]} 42. Kh1 {[%clk 0:00:01]} 42...
Bh4 {[%clk 0:00:19.5]} 43. Qh3 {[%clk 0:00:01.9]} 43... g5 {[%clk 0:00:19.5]}
44. Qf3 {[%clk 0:00:01.6]} 44... g4 {[%clk 0:00:19.2]} 45. Qd3 {[%clk
0:00:01.4]} 45... Qe1+ {[%clk 0:00:18.3]} 0-1

[Event "*** Titled Tuesday Blitz"]
[Site "Chess.com"]
[Date "2020.04.07"]
[Round "5"]
[White "Bryakin_Mikhail"]
[Black "hermionegrangermagic"]
[Result "0-1"]
[WhiteElo "2727"]
[BlackElo "2478"]
[TimeControl "180+1"]
[EndTime "13:56:36 PDT"]
[Termination "hermionegrangermagic won by resignation"]

1. d4 {[%clk 0:02:59.7]} 1... Nf6 {[%clk 0:02:29.7]} 2. h4 {[%clk 0:02:57.2]}
2... d5 {[%clk 0:02:29.4]} 3. Nc3 {[%clk 0:02:55.1]} 3... a6 {[%clk 0:02:25.2]}
4. Bf4 {[%clk 0:02:55]} 4... c5 {[%clk 0:02:21.4]} 5. e3 {[%clk 0:02:53.7]} 5...
Nc6 {[%clk 0:02:20.7]} 6. Nf3 {[%clk 0:02:53.4]} 6... Bg4 {[%clk 0:02:19]} 7.
Be2 {[%clk 0:02:52.9]} 7... e6 {[%clk 0:02:16.6]} 8. Qd2 {[%clk 0:02:52.6]} 8...
cxd4 {[%clk 0:02:14.3]} 9. Nxd4 {[%clk 0:02:49.6]} 9... Bxe2 {[%clk 0:02:11.5]}
10. Qxe2 {[%clk 0:02:45.5]} 10... Bb4 {[%clk 0:02:04.6]} 11. O-O {[%clk
0:02:34]} 11... Rc8 {[%clk 0:01:59.1]} 12. Nxc6 {[%clk 0:02:30.4]} 12... Rxc6
{[%clk 0:01:57.5]} 13. Nd1 {[%clk 0:01:52.9]} 13... O-O {[%clk 0:01:42.2]} 14.
c3 {[%clk 0:01:53.1]} 14... Ba5 {[%clk 0:01:34.2]} 15. Bg5 {[%clk 0:01:48.7]}
15... h6 {[%clk 0:01:27.3]} 16. Bxf6 {[%clk 0:01:48.3]} 16... Qxf6 {[%clk
0:01:26.6]} 17. g3 {[%clk 0:01:48.3]} 17... Bc7 {[%clk 0:01:21.8]} 18. Qg4
{[%clk 0:01:43.8]} 18... Rc4 {[%clk 0:01:18.5]} 19. Qh3 {[%clk 0:01:44.3]} 19...
Qg6 {[%clk 0:01:06.7]} 20. b3 {[%clk 0:01:33]} 20... Rc6 {[%clk 0:01:02.1]} 21.
Rc1 {[%clk 0:01:31.6]} 21... Be5 {[%clk 0:00:55.4]} 22. h5 {[%clk 0:00:50.5]}
22... Qd3 {[%clk 0:00:52.1]} 23. Qg4 {[%clk 0:00:49.3]} 23... Rfc8 {[%clk
0:00:46.4]} 24. Qb4 {[%clk 0:00:45.6]} 24... R8c7 {[%clk 0:00:40.8]} 25. Nb2
{[%clk 0:00:33.3]} 25... Qe2 {[%clk 0:00:33.1]} 26. Na4 {[%clk 0:00:16.7]} 26...
b5 {[%clk 0:00:32.4]} 27. Rfe1 {[%clk 0:00:16.6]} 27... Qxh5 {[%clk 0:00:30.8]}
28. Nb2 {[%clk 0:00:16.1]} 28... Bxc3 {[%clk 0:00:29.5]} 29. Rxc3 {[%clk
0:00:09.6]} 29... Rxc3 {[%clk 0:00:30.4]} 30. a4 {[%clk 0:00:09.9]} 30... Rc2
{[%clk 0:00:29.2]} 31. Nd3 {[%clk 0:00:08.7]} 31... Qf5 {[%clk 0:00:25.9]} 32.
Nf4 {[%clk 0:00:08.8]} 32... e5 {[%clk 0:00:19.6]} 33. Ne2 {[%clk 0:00:08.8]}
33... Qf3 {[%clk 0:00:16.4]} 34. Qd6 {[%clk 0:00:09.1]} 34... Rc8 {[%clk
0:00:14.3]} 35. Qd7 {[%clk 0:00:09.3]} 35... Qf6 {[%clk 0:00:13]} 36. axb5
{[%clk 0:00:08.1]} 36... axb5 {[%clk 0:00:13.3]} 37. Qxb5 {[%clk 0:00:08.5]}
37... Qc6 {[%clk 0:00:13.2]} 38. Qd3 {[%clk 0:00:06.2]} 38... Rb2 {[%clk
0:00:12]} 39. Rc1 {[%clk 0:00:05.7]} 39... Rc2 {[%clk 0:00:10.8]} 40. Re1 {[%clk
0:00:02.5]} 40... Rc5 {[%clk 0:00:10.1]} 41. Rd1 {[%clk 0:00:02.8]} 41... Qb5
{[%clk 0:00:09.4]} 42. Qd2 {[%clk 0:00:03.2]} 42... Rc2 {[%clk 0:00:08.2]} 43.
Nc3 {[%clk 0:00:02.9]} 43... Rxd2 {[%clk 0:00:07.3]} 0-1

[Event "*** Titled Tuesday Blitz"]
[Site "Chess.com"]
[Date "2020.04.07"]
[Round "5"]
[White "Kumi29"]
[Black "francyIM"]
[Result "0-1"]
[WhiteElo "2439"]
[BlackElo "2669"]
[TimeControl "180+1"]
[EndTime "13:56:36 PDT"]
[Termination "francyIM won by resignation"]

1. d4 {[%clk 0:03:00.9]} 1... Nf6 {[%clk 0:02:54]} 2. Bg5 {[%clk 0:03:00.5]}
2... e6 {[%clk 0:02:35]} 3. Nd2 {[%clk 0:02:59.4]} 3... d5 {[%clk 0:02:32.8]} 4.
e3 {[%clk 0:02:59.3]} 4... Nbd7 {[%clk 0:02:30.4]} 5. Bd3 {[%clk 0:02:59]} 5...
Be7 {[%clk 0:02:26]} 6. c3 {[%clk 0:02:58]} 6... b6 {[%clk 0:02:22.9]} 7. f4
{[%clk 0:02:57.5]} 7... Bb7 {[%clk 0:02:23.8]} 8. Ngf3 {[%clk 0:02:57.5]} 8...
h6 {[%clk 0:02:13]} 9. Bxf6 {[%clk 0:02:56.2]} 9... Nxf6 {[%clk 0:02:11.4]} 10.
Ne5 {[%clk 0:02:47.4]} 10... O-O {[%clk 0:02:10.7]} 11. Qf3 {[%clk 0:02:36.9]}
11... Ne8 {[%clk 0:02:06.4]} 12. f5 {[%clk 0:02:06.1]} 12... Qd6 {[%clk
0:01:59.1]} 13. O-O-O {[%clk 0:01:48.1]} 13... exf5 {[%clk 0:01:51.9]} 14. Qxf5
{[%clk 0:01:43.4]} 14... g6 {[%clk 0:01:51.8]} 15. Qh3 {[%clk 0:01:42.2]} 15...
Bg5 {[%clk 0:01:47.5]} 16. Rdf1 {[%clk 0:01:32.6]} 16... f5 {[%clk 0:01:45.6]}
17. g4 {[%clk 0:01:27.1]} 17... Bc8 {[%clk 0:01:35.9]} 18. gxf5 {[%clk
0:01:26.7]} 18... Ng7 {[%clk 0:01:34.3]} 19. e4 {[%clk 0:01:09.7]} 19... dxe4
{[%clk 0:01:29.3]} 20. Bc4+ {[%clk 0:01:00.4]} 20... Kh8 {[%clk 0:01:23.1]} 21.
Nf7+ {[%clk 0:00:51]} 21... Rxf7 {[%clk 0:01:22.4]} 22. Bxf7 {[%clk 0:00:51.9]}
22... Bxf5 {[%clk 0:01:22.8]} 23. Qg3 {[%clk 0:00:48.3]} 23... e3 {[%clk
0:01:20.5]} 24. Nc4 {[%clk 0:00:26.4]} 24... e2+ {[%clk 0:01:17.1]} 25. Qxg5
{[%clk 0:00:25]} 25... exf1=Q+ {[%clk 0:01:15.4]} 26. Rxf1 {[%clk 0:00:23.8]}
26... hxg5 {[%clk 0:01:11.6]} 27. Nxd6 {[%clk 0:00:23.4]} 27... cxd6 {[%clk
0:01:12.5]} 28. Re1 {[%clk 0:00:22]} 28... Rd8 {[%clk 0:01:05.6]} 29. a4 {[%clk
0:00:19.7]} 29... Rd7 {[%clk 0:01:04.7]} 30. Bd5 {[%clk 0:00:20.3]} 30... Rd8
{[%clk 0:01:02.6]} 31. Rg1 {[%clk 0:00:19.9]} 31... g4 {[%clk 0:00:57.9]} 32. b4
{[%clk 0:00:17.4]} 32... Re8 {[%clk 0:00:57.4]} 33. Kd2 {[%clk 0:00:17.9]} 33...
Nh5 {[%clk 0:00:57.5]} 34. Bf7 {[%clk 0:00:16.5]} 34... Re7 {[%clk 0:00:57.2]}
35. Bc4 {[%clk 0:00:16.8]} 35... Nf6 {[%clk 0:00:55.7]} 36. a5 {[%clk
0:00:16.6]} 36... Ne4+ {[%clk 0:00:55.5]} 37. Kc2 {[%clk 0:00:14.3]} 37... Ng5+
{[%clk 0:00:50.4]} 38. Bd3 {[%clk 0:00:12.8]} 38... Re2+ {[%clk 0:00:49.9]} 39.
Kb3 {[%clk 0:00:12.2]} 39... Bxd3 {[%clk 0:00:50.5]} 40. Rxg4 {[%clk 0:00:12.5]}
40... Ne4 {[%clk 0:00:50.6]} 41. axb6 {[%clk 0:00:10.5]} 41... axb6 {[%clk
0:00:50.3]} 42. b5 {[%clk 0:00:10.1]} 42... g5 {[%clk 0:00:48.3]} 43. d5 {[%clk
0:00:10.1]} 43... Nc5+ {[%clk 0:00:46.6]} 44. Ka3 {[%clk 0:00:09.6]} 44... Bxb5
{[%clk 0:00:44.6]} 45. h4 {[%clk 0:00:09.1]} 45... gxh4 {[%clk 0:00:43.8]} 46.
Rxh4+ {[%clk 0:00:10]} 46... Kg7 {[%clk 0:00:44.1]} 47. c4 {[%clk 0:00:10.5]}
47... Bd7 {[%clk 0:00:42.9]} 48. Kb4 {[%clk 0:00:10.9]} 48... Re3 {[%clk
0:00:42.1]} 49. Rh7+ {[%clk 0:00:10.3]} 49... Kf6 {[%clk 0:00:39]} 50. Rf7+
{[%clk 0:00:08.3]} 50... Ke5 {[%clk 0:00:39.1]} 51. Rf5+ {[%clk 0:00:07]} 51...
Bxf5 {[%clk 0:00:37.5]} 0-1

[Event "*** Titled Tuesday Blitz"]
[Site "Chess.com"]
[Date "2020.04.07"]
[Round "5"]
[White "temus_galaktionov"]
[Black "Olga_Girya"]
[Result "1-0"]
[WhiteElo "2746"]
[BlackElo "2555"]
[TimeControl "180+1"]
[EndTime "13:56:37 PDT"]
[Termination "temus_galaktionov won by resignation"]

1. d4 {[%clk 0:01:27.1]} 1... d5 {[%clk 0:02:59.3]} 2. Nf3 {[%clk 0:01:28]} 2...
Nf6 {[%clk 0:02:59]} 3. c4 {[%clk 0:01:28.9]} 3... e6 {[%clk 0:02:57.8]} 4. Nc3
{[%clk 0:01:28.6]} 4... Bb4 {[%clk 0:02:57.6]} 5. cxd5 {[%clk 0:01:28.2]} 5...
exd5 {[%clk 0:02:57.3]} 6. Bg5 {[%clk 0:01:28.6]} 6... h6 {[%clk 0:02:56.8]} 7.
Bxf6 {[%clk 0:01:28.2]} 7... Qxf6 {[%clk 0:02:56.8]} 8. e3 {[%clk 0:01:28.6]}
8... O-O {[%clk 0:02:52.9]} 9. Bd3 {[%clk 0:01:28.6]} 9... Bf5 {[%clk
0:02:51.1]} 10. O-O {[%clk 0:01:29.1]} 10... Bxd3 {[%clk 0:02:42.3]} 11. Qxd3
{[%clk 0:01:30]} 11... c6 {[%clk 0:02:41.8]} 12. Ne5 {[%clk 0:01:29.7]} 12...
Qe7 {[%clk 0:02:38.1]} 13. Rae1 {[%clk 0:01:25.9]} 13... Nd7 {[%clk 0:02:36.4]}
14. f4 {[%clk 0:01:25.7]} 14... Nf6 {[%clk 0:02:34]} 15. Re2 {[%clk 0:01:24.1]}
15... Bxc3 {[%clk 0:02:20.9]} 16. bxc3 {[%clk 0:01:25]} 16... Qa3 {[%clk
0:02:20.8]} 17. Rc2 {[%clk 0:01:21.2]} 17... Ne4 {[%clk 0:02:12]} 18. Rb1 {[%clk
0:01:21.3]} 18... Nd6 {[%clk 0:02:08.9]} 19. g4 {[%clk 0:01:17]} 19... Rfe8
{[%clk 0:02:06.4]} 20. g5 {[%clk 0:01:15.4]} 20... hxg5 {[%clk 0:02:02.8]} 21.
fxg5 {[%clk 0:01:16.3]} 21... Re7 {[%clk 0:01:58]} 22. Rb3 {[%clk 0:01:10.2]}
22... Qa5 {[%clk 0:01:55.5]} 23. Rg2 {[%clk 0:01:08.9]} 23... Ne4 {[%clk
0:01:30.1]} 24. Qe2 {[%clk 0:00:54.9]} 24... g6 {[%clk 0:01:23.4]} 25. h4 {[%clk
0:00:53.4]} 25... Nxc3 {[%clk 0:01:11.4]} 26. Qe1 {[%clk 0:00:47.6]} 26... Rae8
{[%clk 0:00:30.1]} 27. Qxc3 {[%clk 0:00:46.9]} 27... Qc7 {[%clk 0:00:28.9]} 28.
Qd2 {[%clk 0:00:37.6]} 28... c5 {[%clk 0:00:25.6]} 29. Rc3 {[%clk 0:00:37.3]}
29... c4 {[%clk 0:00:25.4]} 30. Rc1 {[%clk 0:00:29.5]} 30... b5 {[%clk
0:00:24.9]} 31. a3 {[%clk 0:00:29.4]} 31... a5 {[%clk 0:00:24]} 32. h5 {[%clk
0:00:28.7]} 32... Rxe5 {[%clk 0:00:20]} 33. dxe5 {[%clk 0:00:27.7]} 33... Qxe5
{[%clk 0:00:20.9]} 34. hxg6 {[%clk 0:00:28.1]} 34... fxg6 {[%clk 0:00:20.5]} 35.
Rd1 {[%clk 0:00:22.8]} 35... Rd8 {[%clk 0:00:08.8]} 36. Qd4 {[%clk 0:00:21.1]}
36... Qe7 {[%clk 0:00:08.1]} 37. Qf6 {[%clk 0:00:19.9]} 37... Qxf6 {[%clk
0:00:08.3]} 38. gxf6 {[%clk 0:00:20.8]} 38... Kf7 {[%clk 0:00:09.2]} 39. Rb2
{[%clk 0:00:20.8]} 39... b4 {[%clk 0:00:07]} 40. axb4 {[%clk 0:00:20.4]} 40...
axb4 {[%clk 0:00:07.9]} 41. Rxb4 {[%clk 0:00:20.4]} 41... Kxf6 {[%clk
0:00:08.8]} 42. Rxc4 {[%clk 0:00:20.2]} 42... Re8 {[%clk 0:00:07.5]} 43. Rxd5
{[%clk 0:00:18.7]} 43... Rxe3 {[%clk 0:00:07.8]} 44. Rc6+ {[%clk 0:00:19.5]}
44... Kg7 {[%clk 0:00:08]} 45. Kf2 {[%clk 0:00:20.1]} 45... Re7 {[%clk
0:00:06.7]} 46. Rdd6 {[%clk 0:00:20.3]} 46... Rf7+ {[%clk 0:00:07.4]} 47. Kg3
{[%clk 0:00:20.6]} 47... Kh7 {[%clk 0:00:07.4]} 48. Rxg6 {[%clk 0:00:21.2]}
48... Kh8 {[%clk 0:00:07]} 49. Rg4 {[%clk 0:00:20.8]} 1-0